Body Name,Body,Service Division,Expense Type,Date Paid,Transaction Ref,Invoice Amount,Supplier Name
Boston Borough Council,http://statistics.data.gov.uk/id/local-authority/32UB,Communities,Water and Sewerage Charges,01/05/2024,30012319,383.29 ,Anglian Water Services Limited
Boston Borough Council,http://statistics.data.gov.uk/id/local-authority/32UB,Communities,Water and Sewerage Charges,01/05/2024,30012320,383.29 ,Anglian Water Services Limited
Boston Borough Council,http://statistics.data.gov.uk/id/local-authority/32UB,Finance,Internal Drainage Board Levies,01/05/2024,30012394,"41,474.00 ",Welland  Deepings Internal Drain Board
Boston Borough Council,http://statistics.data.gov.uk/id/local-authority/32UB,Finance,Internal Drainage Board Levies,01/05/2024,30012446,"1,220.00 ",South Holland Internal Drainage Board
Boston Borough Council,http://statistics.data.gov.uk/id/local-authority/32UB,Finance,Other Miscellaneous Expenses,01/05/2024,30012647,"12,224.30 ",Lloyds Bank Commerical Finance LTD (P Card)
Boston Borough Council,http://statistics.data.gov.uk/id/local-authority/32UB,Grant Payments,Business Rates Tariff,01/05/2024,30012603,"487,306.00 ",Lincolnshire County Council
Boston Borough Council,http://statistics.data.gov.uk/id/local-authority/32UB,Operations,Water and Sewerage Charges,01/05/2024,30012318,419.13 ,Anglian Water Services Limited
Boston Borough Council,http://statistics.data.gov.uk/id/local-authority/32UB,Communities,Grants and Contributions to Outside Bodies - No Service Received,02/05/2024,30012126,749.97 ,Oakley Estates
Boston Borough Council,http://statistics.data.gov.uk/id/local-authority/32UB,Operations,Other Private Contractors,02/05/2024,30012057,340.00 ,SG Services (Boston) LTD
Boston Borough Council,http://statistics.data.gov.uk/id/local-authority/32UB,Operations,Other Private Contractors,02/05/2024,30012058,240.00 ,SG Services (Boston) LTD
Boston Borough Council,http://statistics.data.gov.uk/id/local-authority/32UB,Operations,Other Private Contractors,02/05/2024,30012059,240.00 ,SG Services (Boston) LTD
Boston Borough Council,http://statistics.data.gov.uk/id/local-authority/32UB,Bereavement,Gas,03/05/2024,30012371,"5,563.93 ",Espo Gas and Electricity
Boston Borough Council,http://statistics.data.gov.uk/id/local-authority/32UB,Bereavement,Gas,03/05/2024,30012374,"1,141.82 ",Espo Gas and Electricity
Boston Borough Council,http://statistics.data.gov.uk/id/local-authority/32UB,Communities,Gas,03/05/2024,30012372,571.06 ,Espo Gas and Electricity
Boston Borough Council,http://statistics.data.gov.uk/id/local-authority/32UB,Communities,Gas,03/05/2024,30012373,519.03 ,Espo Gas and Electricity
Boston Borough Council,http://statistics.data.gov.uk/id/local-authority/32UB,BTAC,Performers and Entertainers Fees,07/05/2024,30012151,290.00 ,Sams House
Boston Borough Council,http://statistics.data.gov.uk/id/local-authority/32UB,BTAC,Performers and Entertainers Fees,07/05/2024,30012152,290.00 ,Sams House
Boston Borough Council,http://statistics.data.gov.uk/id/local-authority/32UB,BTAC,Performers and Entertainers Fees,07/05/2024,30012156,290.00 ,Sams House
Boston Borough Council,http://statistics.data.gov.uk/id/local-authority/32UB,Communities,Business Rates,07/05/2024,30012023,"1,452.90 ",Boston Borough Council
Boston Borough Council,http://statistics.data.gov.uk/id/local-authority/32UB,"Democratic, Civic & Electoral Services",Agency Staff,07/05/2024,30012125,"4,400.00 ",�Personal Information Redacted�
Boston Borough Council,http://statistics.data.gov.uk/id/local-authority/32UB,Economic Development,Professional and Contractors Fees,07/05/2024,30012175,"13,514.52 ",�Personal Information Redacted�
Boston Borough Council,http://statistics.data.gov.uk/id/local-authority/32UB,Information Technology,Telephone and Mobiles,07/05/2024,30012310,336.51 ,British Telecommunications Plc
Boston Borough Council,http://statistics.data.gov.uk/id/local-authority/32UB,Information Technology,Telephone and Mobiles,07/05/2024,30012368,702.73 ,British Telecommunications Plc
Boston Borough Council,http://statistics.data.gov.uk/id/local-authority/32UB,Legal Services,Legal Fees,07/05/2024,30012040,"1,996.69 ",Lincolnshire County Council
Boston Borough Council,http://statistics.data.gov.uk/id/local-authority/32UB,Operations,Fuel and Oil,07/05/2024,30011678,"1,103.85 ",Pace Fuelcare
Boston Borough Council,http://statistics.data.gov.uk/id/local-authority/32UB,Operations,Fuel and Oil,07/05/2024,30012477,"6,104.63 ",Fuelcard Services Ltd
Boston Borough Council,http://statistics.data.gov.uk/id/local-authority/32UB,Operations,Fuel and Oil,07/05/2024,30012478,552.50 ,Fuelcard Services Ltd
Boston Borough Council,http://statistics.data.gov.uk/id/local-authority/32UB,Operations,Maintenance,07/05/2024,30011556,790.13 ,Chris Sellars Groundcare LTD
Boston Borough Council,http://statistics.data.gov.uk/id/local-authority/32UB,Operations,Maintenance,07/05/2024,30011623,309.12 ,Chris Sellars Groundcare LTD
Boston Borough Council,http://statistics.data.gov.uk/id/local-authority/32UB,Operations,Maintenance,07/05/2024,30011701,295.00 ,The Boston Sign Company
Boston Borough Council,http://statistics.data.gov.uk/id/local-authority/32UB,Operations,Maintenance,07/05/2024,30011756,547.00 ,The Boston Sign Company
Boston Borough Council,http://statistics.data.gov.uk/id/local-authority/32UB,Operations,Materials and Consumables,07/05/2024,30011700,233.00 ,The Boston Sign Company
Boston Borough Council,http://statistics.data.gov.uk/id/local-authority/32UB,Operations,Materials and Consumables,07/05/2024,30011701,233.00 ,The Boston Sign Company
Boston Borough Council,http://statistics.data.gov.uk/id/local-authority/32UB,Operations,Materials and Consumables,07/05/2024,30011756,110.75 ,The Boston Sign Company
Boston Borough Council,http://statistics.data.gov.uk/id/local-authority/32UB,Operations,Stationery,07/05/2024,30011701,240.00 ,The Boston Sign Company
Boston Borough Council,http://statistics.data.gov.uk/id/local-authority/32UB,Planning,Computer Software Licence Costs,07/05/2024,30011123,"1,500.00 ",Lincolnshire County Council
Boston Borough Council,http://statistics.data.gov.uk/id/local-authority/32UB,Planning,Works to Buildings (Main Contractor),07/05/2024,30011671,"1,510.60 ",Freeths LLP
Boston Borough Council,http://statistics.data.gov.uk/id/local-authority/32UB,Planning,Works to Buildings (Main Contractor),07/05/2024,30012177,637.00 ,Freeths LLP
Boston Borough Council,http://statistics.data.gov.uk/id/local-authority/32UB,Strategic Growth & Development,Grants and Contributions to Outside Bodies - No Service Received,07/05/2024,30011148,"8,424.00 ",Linkage Community Trust
Boston Borough Council,http://statistics.data.gov.uk/id/local-authority/32UB,Strategic Growth & Development,Grants and Contributions to Outside Bodies - No Service Received,07/05/2024,30011947,"3,338.00 ",Pab Languages Centre
Boston Borough Council,http://statistics.data.gov.uk/id/local-authority/32UB,Bereavement,Professional and Contractors Fees,09/05/2024,30012137,277.50 ,Sutterton Surgery
Boston Borough Council,http://statistics.data.gov.uk/id/local-authority/32UB,Bereavement,Professional and Contractors Fees,09/05/2024,30012138,851.00 ,�Personal Information Redacted�
Boston Borough Council,http://statistics.data.gov.uk/id/local-authority/32UB,Bereavement,Professional and Contractors Fees,09/05/2024,30012139,407.00 ,Sutterton Surgery
Boston Borough Council,http://statistics.data.gov.uk/id/local-authority/32UB,Communities,Grants and Contributions - Where a Service is Received,09/05/2024,30012158,"2,500.00 ",North Kesteven District Council
Boston Borough Council,http://statistics.data.gov.uk/id/local-authority/32UB,Communities,Materials and Consumables,09/05/2024,30012215,"1,698.46 ",M & R Leverton and Son Nurseries
Boston Borough Council,http://statistics.data.gov.uk/id/local-authority/32UB,Communities,Professional and Contractors Fees,09/05/2024,30012218,750.00 ,BLS Stay Compliant Limited
Boston Borough Council,http://statistics.data.gov.uk/id/local-authority/32UB,Finance,Insurance In-Year Holding Code,09/05/2024,30012196,291.20 ,The Risk Factor LTD
Boston Borough Council,http://statistics.data.gov.uk/id/local-authority/32UB,Finance,Other Miscellaneous Expenses,09/05/2024,30011859,564.87 ,Access PaySuite formerly Pay360
Boston Borough Council,http://statistics.data.gov.uk/id/local-authority/32UB,Finance,Other Miscellaneous Expenses,09/05/2024,30011860,981.72 ,Access PaySuite formerly Pay360
Boston Borough Council,http://statistics.data.gov.uk/id/local-authority/32UB,Finance,Other Miscellaneous Expenses,09/05/2024,30012185,562.47 ,South Holland District Council
Boston Borough Council,http://statistics.data.gov.uk/id/local-authority/32UB,Land Charges & Licencing,Professional and Contractors Fees,09/05/2024,30012118,"1,308.31 ",Lincolnshire County Council
Boston Borough Council,http://statistics.data.gov.uk/id/local-authority/32UB,Operations,Maintenance,09/05/2024,30011416,370.35 ,Specialist Fleet Services LTD
Boston Borough Council,http://statistics.data.gov.uk/id/local-authority/32UB,Operations,Materials and Consumables,09/05/2024,30012213,"1,062.50 ",M & R Leverton and Son Nurseries
Boston Borough Council,http://statistics.data.gov.uk/id/local-authority/32UB,Property Services,Buildings Maintenance - Programmed,09/05/2024,30011889,222.00 ,Princebuild LTD
Boston Borough Council,http://statistics.data.gov.uk/id/local-authority/32UB,Property Services,Buildings Maintenance - Programmed,09/05/2024,30011892,788.20 ,Princebuild LTD
Boston Borough Council,http://statistics.data.gov.uk/id/local-authority/32UB,Property Services,Buildings Maintenance - Programmed,09/05/2024,30011893,648.20 ,Princebuild LTD
Boston Borough Council,http://statistics.data.gov.uk/id/local-authority/32UB,Property Services,Buildings Maintenance - Programmed,09/05/2024,30011894,568.00 ,Princebuild LTD
Boston Borough Council,http://statistics.data.gov.uk/id/local-authority/32UB,Property Services,Buildings Maintenance - Programmed,09/05/2024,30011896,457.88 ,Princebuild LTD
Boston Borough Council,http://statistics.data.gov.uk/id/local-authority/32UB,Property Services,Buildings Maintenance - Programmed,09/05/2024,30011897,"1,240.70 ",Princebuild LTD
Boston Borough Council,http://statistics.data.gov.uk/id/local-authority/32UB,Property Services,Buildings Maintenance - Programmed,09/05/2024,30011899,782.03 ,Princebuild LTD
Boston Borough Council,http://statistics.data.gov.uk/id/local-authority/32UB,Property Services,Buildings Maintenance - Programmed,09/05/2024,30012089,402.30 ,Glen Farrow UK LTD
Boston Borough Council,http://statistics.data.gov.uk/id/local-authority/32UB,Townscape Heritage,Professional and Contractors Fees,09/05/2024,30012211,550.00 ,The Engaging People Company
Boston Borough Council,http://statistics.data.gov.uk/id/local-authority/32UB,Heritage,Gas,10/05/2024,30012441,"3,071.60 ",Espo Gas and Electricity
Boston Borough Council,http://statistics.data.gov.uk/id/local-authority/32UB,Property Services,Gas,10/05/2024,30012440,"3,659.74 ",Espo Gas and Electricity
Boston Borough Council,http://statistics.data.gov.uk/id/local-authority/32UB,Finance,Postages,13/05/2024,30012439,247.69 ,imail
Boston Borough Council,http://statistics.data.gov.uk/id/local-authority/32UB,Operations,Fuel and Oil,13/05/2024,30012479,"1,878.28 ",Fuelcard Services Ltd
Boston Borough Council,http://statistics.data.gov.uk/id/local-authority/32UB,Operations,Fuel and Oil,13/05/2024,30012480,"3,959.53 ",Fuelcard Services Ltd
Boston Borough Council,http://statistics.data.gov.uk/id/local-authority/32UB,Town Centre,Other Private Contractors,13/05/2024,30012299,"16,935.06 ",Logic Service Management LTD
Boston Borough Council,http://statistics.data.gov.uk/id/local-authority/32UB,BTAC,Business Rates,14/05/2024,30011886,363.10 ,Boston Borough Council
Boston Borough Council,http://statistics.data.gov.uk/id/local-authority/32UB,Communities,Furniture and Equipment,14/05/2024,30011760,289.30 ,ESPO
Boston Borough Council,http://statistics.data.gov.uk/id/local-authority/32UB,Communities,Grants and Contributions to Outside Bodies - No Service Received,14/05/2024,30012209,"35,007.00 ",East Lindsey District Council
Boston Borough Council,http://statistics.data.gov.uk/id/local-authority/32UB,Communities,Grants and Contributions to Outside Bodies - No Service Received,14/05/2024,30012287,"10,453.01 ",Foster Building Services
Boston Borough Council,http://statistics.data.gov.uk/id/local-authority/32UB,Communities,Grants and Contributions to Outside Bodies - No Service Received,14/05/2024,30012293,"6,603.00 ",Obam Lift Services LTD
Boston Borough Council,http://statistics.data.gov.uk/id/local-authority/32UB,Communities,Grants and Contributions to Outside Bodies - No Service Received,14/05/2024,30012294,749.75 ,Oakley Estates
Boston Borough Council,http://statistics.data.gov.uk/id/local-authority/32UB,Communities,Other Miscellaneous Expenses,14/05/2024,30012178,"1,667.71 ",Boston Borough Council
Boston Borough Council,http://statistics.data.gov.uk/id/local-authority/32UB,"Democratic, Civic & Electoral Services",Rent Payments,14/05/2024,30012081,500.00 ,Benington Community Heritage Trust
Boston Borough Council,http://statistics.data.gov.uk/id/local-authority/32UB,"Democratic, Civic & Electoral Services",Rent Payments,14/05/2024,30012086,450.00 ,Fenside Community Centre
Boston Borough Council,http://statistics.data.gov.uk/id/local-authority/32UB,"Democratic, Civic & Electoral Services",Rent Payments,14/05/2024,30012201,300.00 ,St Mary's Roman Catholic Church
Boston Borough Council,http://statistics.data.gov.uk/id/local-authority/32UB,"Democratic, Civic & Electoral Services",Rent Payments,14/05/2024,30012202,300.00 ,Centenary Methodist Church
Boston Borough Council,http://statistics.data.gov.uk/id/local-authority/32UB,"Democratic, Civic & Electoral Services",Rent Payments,14/05/2024,30012223,320.00 ,Wyberton Parish Council
Boston Borough Council,http://statistics.data.gov.uk/id/local-authority/32UB,Economic Development,Professional Fees,14/05/2024,30012295,"8,547.28 ",East Midlands Railway EMR
Boston Borough Council,http://statistics.data.gov.uk/id/local-authority/32UB,Economic Development,Professional Fees,14/05/2024,30012296,"41,238.24 ",East Midlands Railway EMR
Boston Borough Council,http://statistics.data.gov.uk/id/local-authority/32UB,Economic Development,Works to Buildings (Main Contractor),14/05/2024,30012253,"11,942.38 ",Central Bank St Botolphs Church
Boston Borough Council,http://statistics.data.gov.uk/id/local-authority/32UB,Economic Development,Works to Buildings (Main Contractor),14/05/2024,30012265,"14,440.20 ",Lodge Capital Ltd
Boston Borough Council,http://statistics.data.gov.uk/id/local-authority/32UB,Environmental Health,Other Private Contractors,14/05/2024,30012289,925.00 ,A17 Kennels
Boston Borough Council,http://statistics.data.gov.uk/id/local-authority/32UB,Finance,Other Miscellaneous Expenses,14/05/2024,30012273,736.32 ,Access PaySuite formerly Pay360
Boston Borough Council,http://statistics.data.gov.uk/id/local-authority/32UB,Operations,Clothing Uniforms And Laundry,14/05/2024,30011699,"1,750.06 ",SMI Group
Boston Borough Council,http://statistics.data.gov.uk/id/local-authority/32UB,Operations,Materials and Consumables,14/05/2024,30012214,531.42 ,M & R Leverton and Son Nurseries
Boston Borough Council,http://statistics.data.gov.uk/id/local-authority/32UB,Operations,Other Private Contractors,14/05/2024,30012242,615.25 ,Healthguard LTD
Boston Borough Council,http://statistics.data.gov.uk/id/local-authority/32UB,Property Services,Buildings Maintenance - Programmed,14/05/2024,30011901,285.00 ,Glen Farrow UK LTD
Boston Borough Council,http://statistics.data.gov.uk/id/local-authority/32UB,Property Services,Buildings Maintenance - Programmed,14/05/2024,30011916,302.45 ,Compliance Group Electrical Ltd
Boston Borough Council,http://statistics.data.gov.uk/id/local-authority/32UB,Property Services,Buildings Maintenance - Programmed,14/05/2024,30011917,"1,666.58 ",Compliance Group Electrical Ltd
Boston Borough Council,http://statistics.data.gov.uk/id/local-authority/32UB,Property Services,Buildings Maintenance - Programmed,14/05/2024,30011991,480.00 ,Periam and Williamson Ltd
Boston Borough Council,http://statistics.data.gov.uk/id/local-authority/32UB,Property Services,Buildings Maintenance - Programmed,14/05/2024,30011997,666.55 ,Periam and Williamson Ltd
Boston Borough Council,http://statistics.data.gov.uk/id/local-authority/32UB,Property Services,Buildings Maintenance - Programmed,14/05/2024,30012019,283.15 ,Gelder Construction
Boston Borough Council,http://statistics.data.gov.uk/id/local-authority/32UB,Property Services,Buildings Maintenance - Programmed,14/05/2024,30012028,"2,805.62 ",Gelder Construction
Boston Borough Council,http://statistics.data.gov.uk/id/local-authority/32UB,Property Services,Buildings Maintenance - Programmed,14/05/2024,30012031,"3,737.50 ",Gelder Construction
Boston Borough Council,http://statistics.data.gov.uk/id/local-authority/32UB,Property Services,Buildings Maintenance - Programmed,14/05/2024,30012032,555.13 ,Gelder Construction
Boston Borough Council,http://statistics.data.gov.uk/id/local-authority/32UB,Property Services,Buildings Maintenance - Programmed,14/05/2024,30012100,"4,129.30 ",Glen Farrow UK LTD
Boston Borough Council,http://statistics.data.gov.uk/id/local-authority/32UB,Property Services,Buildings Maintenance - Programmed,14/05/2024,30012191,437.00 ,Vere Bros
Boston Borough Council,http://statistics.data.gov.uk/id/local-authority/32UB,Property Services,Buildings Maintenance - Programmed,14/05/2024,30012254,"1,464.80 ",Princebuild LTD
Boston Borough Council,http://statistics.data.gov.uk/id/local-authority/32UB,Property Services,Buildings Maintenance - Programmed,14/05/2024,30012255,"1,464.80 ",Princebuild LTD
Boston Borough Council,http://statistics.data.gov.uk/id/local-authority/32UB,Property Services,Business Rates,14/05/2024,30011491,"4,590.80 ",Boston Borough Council
Boston Borough Council,http://statistics.data.gov.uk/id/local-authority/32UB,Property Services,Business Rates,14/05/2024,30011492,"2,544.90 ",Boston Borough Council
Boston Borough Council,http://statistics.data.gov.uk/id/local-authority/32UB,Property Services,Business Rates,14/05/2024,30011496,"7,984.00 ",Boston Borough Council
Boston Borough Council,http://statistics.data.gov.uk/id/local-authority/32UB,Property Services,Business Rates,14/05/2024,30011497,"1,996.00 ",Boston Borough Council
Boston Borough Council,http://statistics.data.gov.uk/id/local-authority/32UB,Property Services,Business Rates,14/05/2024,30011498,"22,080.75 ",Boston Borough Council
Boston Borough Council,http://statistics.data.gov.uk/id/local-authority/32UB,Property Services,Business Rates,14/05/2024,30011499,"6,611.75 ",Boston Borough Council
Boston Borough Council,http://statistics.data.gov.uk/id/local-authority/32UB,Property Services,Business Rates,14/05/2024,30011502,"2,445.10 ",Boston Borough Council
Boston Borough Council,http://statistics.data.gov.uk/id/local-authority/32UB,Property Services,Business Rates,14/05/2024,30011503,"19,211.50 ",Boston Borough Council
Boston Borough Council,http://statistics.data.gov.uk/id/local-authority/32UB,Property Services,Business Rates,14/05/2024,30011504,"3,892.20 ",Boston Borough Council
Boston Borough Council,http://statistics.data.gov.uk/id/local-authority/32UB,Property Services,Business Rates,14/05/2024,30011509,698.60 ,Boston Borough Council
Boston Borough Council,http://statistics.data.gov.uk/id/local-authority/32UB,Property Services,Business Rates,14/05/2024,30011513,"3,742.50 ",Boston Borough Council
Boston Borough Council,http://statistics.data.gov.uk/id/local-authority/32UB,Property Services,Business Rates,14/05/2024,30011514,"3,193.60 ",Boston Borough Council
Boston Borough Council,http://statistics.data.gov.uk/id/local-authority/32UB,Property Services,Business Rates,14/05/2024,30011515,"2,470.05 ",Boston Borough Council
Boston Borough Council,http://statistics.data.gov.uk/id/local-authority/32UB,Property Services,Fees and Charges General,14/05/2024,30012187,"3,090.20 ",Savoy Cinemas LTD
Boston Borough Council,http://statistics.data.gov.uk/id/local-authority/32UB,Property Services,Fees and Charges General,14/05/2024,30012195,"2,529.70 ",Savoy Cinemas LTD
Boston Borough Council,http://statistics.data.gov.uk/id/local-authority/32UB,Strategic Growth & Development,Grants and Contributions to Outside Bodies - No Service Received,14/05/2024,30012047,"9,770.00 ",CoLa Training Services Limited
Boston Borough Council,http://statistics.data.gov.uk/id/local-authority/32UB,Strategic Growth & Development,Grants and Contributions to Outside Bodies - No Service Received,14/05/2024,30012251,"7,368.00 ",University of Lincoln
Boston Borough Council,http://statistics.data.gov.uk/id/local-authority/32UB,Business Transformation,Postages,16/05/2024,30012110,392.98 ,Royal Mail
Boston Borough Council,http://statistics.data.gov.uk/id/local-authority/32UB,Communities,Bed and Breakfast Accommodation (Homelessness Service),16/05/2024,30012292,450.00 ,Fairfield Guest House
Boston Borough Council,http://statistics.data.gov.uk/id/local-authority/32UB,Communities,Bed and Breakfast Accommodation (Homelessness Service),16/05/2024,30012344,"1,540.00 ",The Lord Grey Hotel t/a The Lord Grey Ltd
Boston Borough Council,http://statistics.data.gov.uk/id/local-authority/32UB,Communities,Grants and Contributions to Outside Bodies - No Service Received,16/05/2024,30012305,"6,169.93 ",Westone Housing Ltd
Boston Borough Council,http://statistics.data.gov.uk/id/local-authority/32UB,Finance,Banking Charges,16/05/2024,30012437,"1,897.09 ",HSBC
Boston Borough Council,http://statistics.data.gov.uk/id/local-authority/32UB,Finance,Electricity,16/05/2024,30012445,"47,167.57 ",TotalEnergies
Boston Borough Council,http://statistics.data.gov.uk/id/local-authority/32UB,Finance,Legal Fees,16/05/2024,30012252,810.00 ,South Holland District Council
Boston Borough Council,http://statistics.data.gov.uk/id/local-authority/32UB,Information Technology,Computer Software Licence Costs,16/05/2024,30012121,"10,093.36 ",Civica UK LTD
Boston Borough Council,http://statistics.data.gov.uk/id/local-authority/32UB,Information Technology,Computer Software Licence Costs,16/05/2024,30012226,"8,619.85 ",Public Sector Partnership Services LTD
Boston Borough Council,http://statistics.data.gov.uk/id/local-authority/32UB,Information Technology,Computer Software Licence Costs,16/05/2024,30012227,"7,998.34 ",Public Sector Partnership Services LTD
Boston Borough Council,http://statistics.data.gov.uk/id/local-authority/32UB,Information Technology,Materials and Consumables,16/05/2024,30012225,"1,758.90 ",Public Sector Partnership Services LTD
Boston Borough Council,http://statistics.data.gov.uk/id/local-authority/32UB,Operations,Agency Staff,16/05/2024,30012199,"6,246.51 ",Comensura LTD
Boston Borough Council,http://statistics.data.gov.uk/id/local-authority/32UB,Operations,Materials and Consumables,16/05/2024,30011689,684.40 ,ESPO
Boston Borough Council,http://statistics.data.gov.uk/id/local-authority/32UB,Operations,Materials and Consumables,16/05/2024,30012331,"2,100.00 ",BM Arboriculture & Garden Care
Boston Borough Council,http://statistics.data.gov.uk/id/local-authority/32UB,Operations,Materials and Consumables,16/05/2024,30012340,597.75 ,ESPO
Boston Borough Council,http://statistics.data.gov.uk/id/local-authority/32UB,Operations,Vehicle Hire,16/05/2024,30012233,500.00 ,Phil Haines Coaches LTD
Boston Borough Council,http://statistics.data.gov.uk/id/local-authority/32UB,Property Services,Buildings Maintenance - Programmed,16/05/2024,30011998,780.00 ,Periam and Williamson Ltd
Boston Borough Council,http://statistics.data.gov.uk/id/local-authority/32UB,Property Services,Materials and Consumables,16/05/2024,30011689,684.40 ,ESPO
Boston Borough Council,http://statistics.data.gov.uk/id/local-authority/32UB,Property Services,Materials and Consumables,16/05/2024,30012340,597.75 ,ESPO
Boston Borough Council,http://statistics.data.gov.uk/id/local-authority/32UB,Property Services,Works to Buildings (Main Contractor),16/05/2024,30012106,"45,000.00 ",Vere Bros
Boston Borough Council,http://statistics.data.gov.uk/id/local-authority/32UB,Property Services,Works to Buildings (Main Contractor),16/05/2024,30012107,"5,000.00 ",Vere Bros
Boston Borough Council,http://statistics.data.gov.uk/id/local-authority/32UB,Strategic Economic Development Projects,Professional and Contractors Fees,16/05/2024,30012351,"2,479.50 ",Park Avenue Recruitment
Boston Borough Council,http://statistics.data.gov.uk/id/local-authority/32UB,Strategic Economic Development Projects,Professional and Contractors Fees,16/05/2024,30012356,"2,610.00 ",Park Avenue Recruitment
Boston Borough Council,http://statistics.data.gov.uk/id/local-authority/32UB,Strategic Growth & Development,Agency Staff,16/05/2024,30011151,"43,282.22 ",South Holland District Council
Boston Borough Council,http://statistics.data.gov.uk/id/local-authority/32UB,Finance,Banking Charges,17/05/2024,30012442,395.00 ,King and Shaxson
Boston Borough Council,http://statistics.data.gov.uk/id/local-authority/32UB,BTAC,Water and Sewerage Charges,20/05/2024,30012605,"2,382.90 ",Wave
Boston Borough Council,http://statistics.data.gov.uk/id/local-authority/32UB,Council Tax & Benefits,Business Rates - Contribution to Surplus/Deficit,20/05/2024,30012613,"24,920.00 ",Department for levelling Up Housing & Communities
Boston Borough Council,http://statistics.data.gov.uk/id/local-authority/32UB,Council Tax & Benefits,Business Rates - Share of Income Central Government,20/05/2024,30012613,"912,393.00 ",Department for levelling Up Housing & Communities
Boston Borough Council,http://statistics.data.gov.uk/id/local-authority/32UB,Council Tax & Benefits,Business Rates - Transitional Protection Payments,20/05/2024,30012613,"-48,281.00 ",Department for levelling Up Housing & Communities
Boston Borough Council,http://statistics.data.gov.uk/id/local-authority/32UB,Finance,Banking Charges,20/05/2024,30012618,772.33 ,Bottomline
Boston Borough Council,http://statistics.data.gov.uk/id/local-authority/32UB,Finance,Business Rates - Contribution to Surplus/Deficit,20/05/2024,30012613,"24,920.00 ",Department for levelling Up Housing & Communities
Boston Borough Council,http://statistics.data.gov.uk/id/local-authority/32UB,Finance,Business Rates - Share of Income Central Government,20/05/2024,30012613,"912,393.00 ",Department for levelling Up Housing & Communities
Boston Borough Council,http://statistics.data.gov.uk/id/local-authority/32UB,Finance,Business Rates - Transitional Protection Payments,20/05/2024,30012613,"-48,281.00 ",Department for levelling Up Housing & Communities
Boston Borough Council,http://statistics.data.gov.uk/id/local-authority/32UB,Finance,Postages,20/05/2024,30012616,521.30 ,imail
Boston Borough Council,http://statistics.data.gov.uk/id/local-authority/32UB,Grant Payments,Business Rates Tariff,20/05/2024,30012613,"-4,164.00 ",Department for levelling Up Housing & Communities
Boston Borough Council,http://statistics.data.gov.uk/id/local-authority/32UB,Grant Payments,Non-Ringfenced Government Grants - RSG,20/05/2024,30012613,"-41,509.00 ",Department for levelling Up Housing & Communities
Boston Borough Council,http://statistics.data.gov.uk/id/local-authority/32UB,Land Charges & Licencing,Professional and Contractors Fees,20/05/2024,30012622,798.00 ,Disclosure and Barring Service
Boston Borough Council,http://statistics.data.gov.uk/id/local-authority/32UB,Operations,Fuel and Oil,20/05/2024,30012607,719.56 ,Fuelcard Services Ltd
Boston Borough Council,http://statistics.data.gov.uk/id/local-authority/32UB,Operations,Fuel and Oil,20/05/2024,30012608,"5,466.39 ",Fuelcard Services Ltd
Boston Borough Council,http://statistics.data.gov.uk/id/local-authority/32UB,Property Services,Water and Sewerage Charges,20/05/2024,30012605,"2,382.90 ",Wave
Boston Borough Council,http://statistics.data.gov.uk/id/local-authority/32UB,Town Centre,Water and Sewerage Charges,20/05/2024,30012606,584.05 ,Wave
Boston Borough Council,http://statistics.data.gov.uk/id/local-authority/32UB,Communities,Computer Hardware Purchase,21/05/2024,30011994,430.43 ,Tangible Benefit
Boston Borough Council,http://statistics.data.gov.uk/id/local-authority/32UB,Communities,Grants and Contributions to Outside Bodies - No Service Received,21/05/2024,30012355,"34,125.00 ",Citizens Advice Mid Lincolnshire
Boston Borough Council,http://statistics.data.gov.uk/id/local-authority/32UB,"Democratic, Civic & Electoral Services",External Printing and Design Costs,21/05/2024,30012016,"2,605.80 ",Civica Election Services LTD
Boston Borough Council,http://statistics.data.gov.uk/id/local-authority/32UB,Economic Development,Professional Fees,21/05/2024,30012148,492.80 ,Freeths LLP
Boston Borough Council,http://statistics.data.gov.uk/id/local-authority/32UB,Finance,Subscriptions to Organisations and Other Bodies,21/05/2024,30012274,500.00 ,South Tyneside Council
Boston Borough Council,http://statistics.data.gov.uk/id/local-authority/32UB,Information Technology,Other Communication Costs,21/05/2024,30012087,425.24 ,Nominet
Boston Borough Council,http://statistics.data.gov.uk/id/local-authority/32UB,Leisure,Leisure Management,21/05/2024,30012005,"60,883.83 ",Parkwood Leisure Limited
Boston Borough Council,http://statistics.data.gov.uk/id/local-authority/32UB,Operations,Maintenance,21/05/2024,30012008,934.72 ,Chris Sellars Groundcare LTD
Boston Borough Council,http://statistics.data.gov.uk/id/local-authority/32UB,Operations,Other Miscellaneous Expenses,21/05/2024,30012267,240.00 ,SG Services (Boston) LTD
Boston Borough Council,http://statistics.data.gov.uk/id/local-authority/32UB,Operations,Other Private Contractors,21/05/2024,30012266,340.00 ,SG Services (Boston) LTD
Boston Borough Council,http://statistics.data.gov.uk/id/local-authority/32UB,Operations,Other Private Contractors,21/05/2024,30012271,240.00 ,SG Services (Boston) LTD
Boston Borough Council,http://statistics.data.gov.uk/id/local-authority/32UB,Property Services,Buildings Maintenance - Programmed,21/05/2024,30012080,350.00 ,BDA Surveying LTD
Boston Borough Council,http://statistics.data.gov.uk/id/local-authority/32UB,Property Services,Buildings Maintenance - Programmed,21/05/2024,30012239,590.40 ,Treske Limited
Boston Borough Council,http://statistics.data.gov.uk/id/local-authority/32UB,Strategic Economic Development Projects,Professional and Contractors Fees,21/05/2024,30012397,"2,088.00 ",Park Avenue Recruitment
Boston Borough Council,http://statistics.data.gov.uk/id/local-authority/32UB,Strategic Growth & Development,Grants and Contributions to Outside Bodies - No Service Received,21/05/2024,30011985,"4,758.00 ",TEC Partnership
Boston Borough Council,http://statistics.data.gov.uk/id/local-authority/32UB,Town Centre,Other Private Contractors,21/05/2024,30012345,"16,935.06 ",Logic Service Management LTD
Boston Borough Council,http://statistics.data.gov.uk/id/local-authority/32UB,Bereavement,Purchase Of Goods For Resale,23/05/2024,30012105,451.00 ,The Yaboo Co LTD (Wesley Media)
Boston Borough Council,http://statistics.data.gov.uk/id/local-authority/32UB,Bereavement,Purchase Of Goods For Resale,23/05/2024,30012113,248.00 ,The Yaboo Co LTD (Wesley Media)
Boston Borough Council,http://statistics.data.gov.uk/id/local-authority/32UB,BTAC,Advertising - Events,23/05/2024,30012396,"1,110.00 ",Bauer Radio LTD
Boston Borough Council,http://statistics.data.gov.uk/id/local-authority/32UB,BTAC,Clothing Uniforms And Laundry,23/05/2024,30012054,396.40 ,Landscape Supply Company
Boston Borough Council,http://statistics.data.gov.uk/id/local-authority/32UB,BTAC,Materials and Consumables,23/05/2024,30012054,59.19 ,Landscape Supply Company
Boston Borough Council,http://statistics.data.gov.uk/id/local-authority/32UB,Business Transformation,Postages,23/05/2024,30012472,381.72 ,Royal Mail
Boston Borough Council,http://statistics.data.gov.uk/id/local-authority/32UB,Communities,Bed and Breakfast Accommodation (Homelessness Service),23/05/2024,30012498,360.00 ,Smart Move (Boston) LTD
Boston Borough Council,http://statistics.data.gov.uk/id/local-authority/32UB,Communities,Computer Software Purchase,23/05/2024,30012481,"1,315.25 ",East Lindsey District Council
Boston Borough Council,http://statistics.data.gov.uk/id/local-authority/32UB,Communities,Fixtures And Fittings,23/05/2024,30012496,"4,655.00 ",J Lote Plumbing & Heating
Boston Borough Council,http://statistics.data.gov.uk/id/local-authority/32UB,Communities,Grants and Contributions to Outside Bodies - No Service Received,23/05/2024,30012354,"12,000.00 ",Centrepoint Outreach
Boston Borough Council,http://statistics.data.gov.uk/id/local-authority/32UB,Communities,Grants and Contributions to Outside Bodies - No Service Received,23/05/2024,30012499,"6,265.58 ",JH Smithson and Son LTD
Boston Borough Council,http://statistics.data.gov.uk/id/local-authority/32UB,Communities,Other Miscellaneous Expenses,23/05/2024,30012169,411.26 ,thebigword
Boston Borough Council,http://statistics.data.gov.uk/id/local-authority/32UB,"Democratic, Civic & Electoral Services",External Printing and Design Costs,23/05/2024,30012104,874.96 ,Civica Election Services LTD
Boston Borough Council,http://statistics.data.gov.uk/id/local-authority/32UB,"Democratic, Civic & Electoral Services",Postages,23/05/2024,30012203,"2,760.66 ",Royal Mail
Boston Borough Council,http://statistics.data.gov.uk/id/local-authority/32UB,"Democratic, Civic & Electoral Services",Rent Payments,23/05/2024,30012383,281.50 ,Boston West Kids Club
Boston Borough Council,http://statistics.data.gov.uk/id/local-authority/32UB,"Democratic, Civic & Electoral Services",Rent Payments,23/05/2024,30012388,748.00 ,Holy Trinity Church
Boston Borough Council,http://statistics.data.gov.uk/id/local-authority/32UB,Economic Development,Professional Fees,23/05/2024,30012143,283.40 ,Freeths LLP
Boston Borough Council,http://statistics.data.gov.uk/id/local-authority/32UB,Operations,Agency Staff,23/05/2024,30012347,"7,036.29 ",Comensura LTD
Boston Borough Council,http://statistics.data.gov.uk/id/local-authority/32UB,Operations,Furniture and Equipment,23/05/2024,30012167,281.67 ,Portable offices (Hire) LTD
Boston Borough Council,http://statistics.data.gov.uk/id/local-authority/32UB,Operations,Other Private Contractors,23/05/2024,30012359,240.00 ,SG Services (Boston) LTD
Boston Borough Council,http://statistics.data.gov.uk/id/local-authority/32UB,Operations,Vehicle Hire,23/05/2024,30012092,"4,840.00 ",SFS t/a Collett Transport Services
Boston Borough Council,http://statistics.data.gov.uk/id/local-authority/32UB,Operations,Vehicle Hire,23/05/2024,30012093,"4,620.00 ",SFS t/a Collett Transport Services
Boston Borough Council,http://statistics.data.gov.uk/id/local-authority/32UB,Planning,Professional and Contractors Fees,23/05/2024,30012378,436.80 ,Freeths LLP
Boston Borough Council,http://statistics.data.gov.uk/id/local-authority/32UB,Property Services,Other Private Contractors,23/05/2024,30012186,"1,174.52 ",Kings Armoured Security Services LTD
Boston Borough Council,http://statistics.data.gov.uk/id/local-authority/32UB,Property Services,Professional and Contractors Fees,23/05/2024,30012135,"1,553.57 ",IPS (UK) Ltd
Boston Borough Council,http://statistics.data.gov.uk/id/local-authority/32UB,Property Services,Professional and Contractors Fees,23/05/2024,30012221,343.00 ,Chipside LTD
Boston Borough Council,http://statistics.data.gov.uk/id/local-authority/32UB,Property Services,Professional and Contractors Fees,23/05/2024,30012222,784.16 ,Chipside LTD
Boston Borough Council,http://statistics.data.gov.uk/id/local-authority/32UB,Property Services,Professional and Contractors Fees,23/05/2024,30012235,444.09 ,Chipside LTD
Boston Borough Council,http://statistics.data.gov.uk/id/local-authority/32UB,Strategic Growth & Development,Grants and Contributions to Outside Bodies - No Service Received,23/05/2024,30012495,"3,891.60 ",Heritage Trust of Lincolnshire LTD
Boston Borough Council,http://statistics.data.gov.uk/id/local-authority/32UB,Town Centre,Other Miscellaneous Expenses,23/05/2024,30012353,"1,840.00 ",SG Services (Boston) LTD
Boston Borough Council,http://statistics.data.gov.uk/id/local-authority/32UB,BTAC,Water and Sewerage Charges,24/05/2024,30012631,652.46 ,Wave
Boston Borough Council,http://statistics.data.gov.uk/id/local-authority/32UB,Council Tax & Benefits,Business Rates - Share of Income Lincolnshire County Council,24/05/2024,30012629,"208,324.30 ",Lincolnshire County Council
Boston Borough Council,http://statistics.data.gov.uk/id/local-authority/32UB,Council Tax & Benefits,Council Tax Precept - Lincolnshire County Council,24/05/2024,30012629,"3,176,119.15 ",Lincolnshire County Council
Boston Borough Council,http://statistics.data.gov.uk/id/local-authority/32UB,Council Tax & Benefits,Council Tax Precept - Lincolnshire Police,24/05/2024,30012630,"612,010.04 ",Police and Crime Commissioner For Lincolnshire
Boston Borough Council,http://statistics.data.gov.uk/id/local-authority/32UB,Finance,Business Rates - Share of Income Lincolnshire County Council,24/05/2024,30012629,"208,324.30 ",Lincolnshire County Council
Boston Borough Council,http://statistics.data.gov.uk/id/local-authority/32UB,Finance,Council Tax Precept - Lincolnshire County Council,24/05/2024,30012629,"3,176,119.15 ",Lincolnshire County Council
Boston Borough Council,http://statistics.data.gov.uk/id/local-authority/32UB,Finance,Council Tax Precept - Lincolnshire Police,24/05/2024,30012630,"612,010.04 ",Police and Crime Commissioner For Lincolnshire
Boston Borough Council,http://statistics.data.gov.uk/id/local-authority/32UB,Property Services,Water and Sewerage Charges,24/05/2024,30012631,652.46 ,Wave
Boston Borough Council,http://statistics.data.gov.uk/id/local-authority/32UB,Property Services,Water and Sewerage Charges,24/05/2024,30012632,"1,218.08 ",Wave
Boston Borough Council,http://statistics.data.gov.uk/id/local-authority/32UB,Communities,Bed and Breakfast Accommodation (Homelessness Service),28/05/2024,30012535,400.00 ,Fairfield Guest House
Boston Borough Council,http://statistics.data.gov.uk/id/local-authority/32UB,Communities,Grants and Contributions to Outside Bodies - No Service Received,28/05/2024,30012463,"31,000.00 ",Lincolnshire CVS
Boston Borough Council,http://statistics.data.gov.uk/id/local-authority/32UB,"Democratic, Civic & Electoral Services",Agency Staff,28/05/2024,30012461,"1,540.00 ",�Personal Information Redacted�
Boston Borough Council,http://statistics.data.gov.uk/id/local-authority/32UB,"Democratic, Civic & Electoral Services",Other Miscellaneous Expenses,28/05/2024,30012145,282.31 ,Probrand Limited
Boston Borough Council,http://statistics.data.gov.uk/id/local-authority/32UB,Economic Development,Professional Fees,28/05/2024,30012501,"19,499.49 ",Heritage Trust of Lincolnshire LTD
Boston Borough Council,http://statistics.data.gov.uk/id/local-authority/32UB,Finance,External Audit Fees,28/05/2024,30012536,"44,799.00 ",Mazars LLP
Boston Borough Council,http://statistics.data.gov.uk/id/local-authority/32UB,Information Technology,Computer Hardware Purchase,28/05/2024,30011798,"1,126.24 ",Probrand Limited
Boston Borough Council,http://statistics.data.gov.uk/id/local-authority/32UB,Information Technology,Telephone and Mobiles,28/05/2024,30012474,"3,651.30 ",Public Sector Partnership Services LTD
Boston Borough Council,http://statistics.data.gov.uk/id/local-authority/32UB,Leisure,Leisure Management,28/05/2024,30012144,"60,883.83 ",Parkwood Leisure Limited
Boston Borough Council,http://statistics.data.gov.uk/id/local-authority/32UB,Operations,Agency Staff,28/05/2024,30012109,"7,058.90 ",Comensura LTD
Boston Borough Council,http://statistics.data.gov.uk/id/local-authority/32UB,Operations,Maintenance,28/05/2024,30012146,"28,212.54 ",Specialist Fleet Services LTD
Boston Borough Council,http://statistics.data.gov.uk/id/local-authority/32UB,Operations,Staff Training Expenses (Non-Payroll),28/05/2024,30012468,"1,853.33 ",Boston LGV Training LTD
Boston Borough Council,http://statistics.data.gov.uk/id/local-authority/32UB,Property Services,Buildings Maintenance - Programmed,28/05/2024,30011816,"1,250.00 ",Eon UK Energy Services
Boston Borough Council,http://statistics.data.gov.uk/id/local-authority/32UB,Property Services,Buildings Maintenance - Programmed,28/05/2024,30012036,237.38 ,Healthguard LTD
Boston Borough Council,http://statistics.data.gov.uk/id/local-authority/32UB,Property Services,Buildings Maintenance - Programmed,28/05/2024,30012192,"2,341.00 ",Vere Bros
Boston Borough Council,http://statistics.data.gov.uk/id/local-authority/32UB,Property Services,Buildings Maintenance - Programmed,28/05/2024,30012304,350.00 ,BDA Surveying LTD
Boston Borough Council,http://statistics.data.gov.uk/id/local-authority/32UB,Property Services,Buildings Maintenance - Programmed,28/05/2024,30012328,252.89 ,Periam and Williamson Ltd
Boston Borough Council,http://statistics.data.gov.uk/id/local-authority/32UB,Property Services,Buildings Maintenance - Programmed,28/05/2024,30012329,890.00 ,Periam and Williamson Ltd
Boston Borough Council,http://statistics.data.gov.uk/id/local-authority/32UB,Property Services,Buildings Maintenance - Programmed,28/05/2024,30012336,467.00 ,Periam and Williamson Ltd
Boston Borough Council,http://statistics.data.gov.uk/id/local-authority/32UB,Property Services,Buildings Maintenance - Programmed,28/05/2024,30012367,"3,474.00 ",Blockfree Services LTD Lincs Loos
Boston Borough Council,http://statistics.data.gov.uk/id/local-authority/32UB,Property Services,Buildings Maintenance - Programmed,28/05/2024,30012406,"1,270.00 ",Nerg
Boston Borough Council,http://statistics.data.gov.uk/id/local-authority/32UB,Property Services,Buildings Maintenance - Programmed,28/05/2024,30012504,245.00 ,Glen Farrow UK LTD
Boston Borough Council,http://statistics.data.gov.uk/id/local-authority/32UB,Property Services,Buildings Maintenance - Programmed,28/05/2024,30012505,225.00 ,Glen Farrow UK LTD
Boston Borough Council,http://statistics.data.gov.uk/id/local-authority/32UB,Strategic Growth & Development,Professional Fees,28/05/2024,30012120,"4,687.73 ",Capsticks Solicitors LLP
Boston Borough Council,http://statistics.data.gov.uk/id/local-authority/32UB,Strategic Growth & Development,Professional Fees,28/05/2024,30012341,336.00 ,Capsticks Solicitors LLP
Boston Borough Council,http://statistics.data.gov.uk/id/local-authority/32UB,Town Centre,Other Miscellaneous Expenses,28/05/2024,30012409,260.00 ,National Radio Bank (Roadphone)
Boston Borough Council,http://statistics.data.gov.uk/id/local-authority/32UB,Business Transformation,Postages,30/05/2024,30012322,"1,121.12 ",Royal Mail
Boston Borough Council,http://statistics.data.gov.uk/id/local-authority/32UB,Communities,Bed and Breakfast Accommodation (Homelessness Service),30/05/2024,30012534,450.00 ,Fairfield Guest House
Boston Borough Council,http://statistics.data.gov.uk/id/local-authority/32UB,Communities,Business Rates,30/05/2024,30012503,"1,262.92 ",Boston Borough Council
Boston Borough Council,http://statistics.data.gov.uk/id/local-authority/32UB,Economic Development,Professional and Contractors Fees,30/05/2024,30012642,"37,452.04 ",Community Ventures
Boston Borough Council,http://statistics.data.gov.uk/id/local-authority/32UB,Economic Development,Purchase of Buildings,30/05/2024,30012568,"50,000.00 ",Lincolnshire YMCA LTD
Boston Borough Council,http://statistics.data.gov.uk/id/local-authority/32UB,Operations,Other Private Contractors,30/05/2024,30012493,240.00 ,SG Services (Boston) LTD
Boston Borough Council,http://statistics.data.gov.uk/id/local-authority/32UB,Operations,Vehicle Hire,30/05/2024,30012298,"1,200.00 ",Phil Haines Coaches LTD
Boston Borough Council,http://statistics.data.gov.uk/id/local-authority/32UB,Strategic Growth & Development,Grants and Contributions to Outside Bodies - No Service Received,30/05/2024,30012602,"6,000.00 ",Boston Community Transport Ltd
Boston Borough Council,http://statistics.data.gov.uk/id/local-authority/32UB,Strategic Growth & Development,Grants and Contributions to Outside Bodies - No Service Received,30/05/2024,30012640,960.00 ,Steadfast Training Ltd
